Cogmind - Beta 15 *** ADVENTURER MODE // 2025.07.25 @ 16:48:10 Player: Gentle Jesus Result: Self-destructed Performance ------------- Evolutions (2) 1000 Regions Visited (5) 1000 Robots Destroyed (22) 110 Value Destroyed (485) 485 Prototype IDs (1) 20 Alien Tech Used (0) 0 Bonus (0) 0 TOTAL SCORE: 2615 Bonus ------- None Cogmind --------- Core Integrity 464/550 Matter 290/300 Energy 204/250 System Corruption 4% Temperature Warm (102) Movement Rolling (110) Ox2 Location -8/Materials Parts ------- > --- POWER (1) -------- Ion Engine > --- PROPULSION (4) --- Wheel > --- UTILITY (4) ------ Medium Storage Unit Visual Processing Unit Terrain Scan Processor > --- WEAPON (2) ------- Heavy Particle Gun Heavy Particle Cannon > --- INVENTORY (10) --- Improved Heat Sink Experimental Sensor Array Peak State ------------ > --- POWER ------------ Ion Engine > --- PROPULSION ------- Wheel Wheel > --- UTILITY ---------- Medium Storage Unit Visual Processing Unit Improved Terrain Scanner Terrain Scan Processor > --- WEAPON ----------- Heavy Particle Gun Heavy Particle Cannon > --- INVENTORY -------- Improved Heat Sink Experimental Sensor Array Heavy Missile Launcher [Rating: 19] Favorites ----------- Power Ion Engine Engine Ion Engine Propulsion Wheel Wheel Wheel Utility Seismic Detector Device Seismic Detector Storage Medium Storage Unit Processor Visual Processing Unit Weapon Light Cannon Energy Gun EM Pulse Gun Energy Cannon Heavy Particle Cannon Ballistic Cannon Light Cannon Launcher Heavy Missile Launcher Build | -11 -10 -10 -10 -9 -8 ------- Run | Yrd Mat Min Exi Min Mat Slots Evolved 4 | . . . . . 4 Power . | . . . . . . Propulsion 2 | . . . . . 2 Utility 2 | . . . . . 2 Weapon . | . . . . . . Parts Attached 20 | 7 3 . . 3 7 Power 2 | 1 . . . 1 . Engine 2 | 1 . . . 1 . Core . | . . . . . . Reactor . | . . . . . . Propulsion 5 | 2 1 . . 1 1 Treads . | . . . . . . Leg . | . . . . . . Wheel 5 | 2 1 . . 1 1 Hover . | . . . . . . Flight . | . . . . . . Utility 6 | 2 1 . . . 3 Device 2 | 1 . . . . 1 Storage 2 | 1 1 . . . . Processor 2 | . . . . . 2 Hackware . | . . . . . . Protection . | . . . . . . Artifact . | . . . . . . Weapon 7 | 2 1 . . 1 3 Energy Gun 3 | 2 . . . . 1 Energy Cannon 1 | . . . . . 1 Ballistic Gun . | . . . . . . Ballistic Cannon 2 | . 1 . . 1 . Launcher 1 | . . . . . 1 Special Weapon . | . . . . . . Impact Weapon . | . . . . . . Slashing Weapon . | . . . . . . Piercing Weapon . | . . . . . . Special Melee Weapon . | . . . . . . Unidentified Prototypes 1 | . . . . . 1 Corrupted Parts 1 | . . . . . 1 System Corruption 4 | . . . . . 4 Parts Lost 8 | . 1 . . 5 2 Power 1 | . . . . 1 . Propulsion 4 | . 1 . . 2 1 Utility 2 | . . . . 1 1 Weapon 1 | . . . . 1 . Highest Loss Streak 3 | . 1 . . 3 2 To Critical Strikes . | . . . . . . Average Backups 7 | 2 7 8 8 9 3 Power . | . 1 1 1 . . Propulsion 2 | 1 3 3 3 2 . Utility 2 | . 1 2 2 4 2 Weapon 1 | . . 2 2 1 . Tool/Special . | . . . . . . Unused Backups 4 | . . . . 2 2 Power . | . . . . . . Propulsion 1 | . . . . 1 . Utility 2 | . . . . . 2 Weapon 1 | . . . . 1 . Tool/Special . | . . . . . . Average Slot Usage (%) 97 | . 99 100 100 96 79 Engine 13 | . 14 14 14 14 9 Wheel 26 | . 28 28 28 26 18 Device 13 | . 14 14 14 12 8 Storage 13 | . 14 14 14 14 9 Processor 1 | . . . . . 17 Energy Gun 12 | . 14 14 14 11 7 Ballistic Cannon 13 | . 13 14 14 16 4 Peak Build Rating 19 | 7 8 8 8 9 19 Average Rating 8 | 5 7 8 8 8 17 On Entrance 6 | . 7 8 8 8 7 Naked Turns . | . . . . . . Heaviest Build 25 | 15 21 21 21 22 25 Greatest Support 20 | 20 20 20 20 20 20 Greatest Overweight (x) 2 | . 1 1 1 2 1 Average Overweight (x) . | . . 1 1 1 1 Largest Inventory Capacity 10 | 8 10 10 10 10 10 Average Capacity 9 | 7 8 10 10 10 10 Most Carried 10 | 6 8 8 8 10 6 Average Carried 7 | 2 7 8 8 9 2 Final Capacity 10 | 8 10 10 10 10 10 Final Carried 8 | 6 8 8 8 7 2 Class Distribution -------------------- 49% | Mutant 42% | Commander-Mutant 7% | Skirmisher Dominant Class ---------------- Mutant | -10/Materials Mutant | -10/Mines Commander-Mutant | -10/Exiles Commander-Mutant | -9/Mines Skirmisher | -8/Materials Resources | -11 -10 -10 -10 -9 -8 ----------- Run | Yrd Mat Min Exi Min Mat Matter Collected 534 | 270 72 . . 132 60 Remotely . | . . . . . . Salvage Created 730 | 161 321 . . 100 148 Parts 49 | 11 26 . . 5 7 Haulers Intercepted 2 | . 2 . . . . Recyclers Shooed . | . . . . . . Parts Field Recycled . | . . . . . . Retrieved Matter . | . . . . . . Parts Self-Destructed . | . . . . . . Prevented . | . . . . . . Kills | -11 -10 -10 -10 -9 -8 ------- Run | Yrd Mat Min Exi Min Mat Combat Hostiles Destroyed 17 | . 7 . . 7 3 Guns 8 | . 4 . . 2 2 Cannons 9 | . 3 . . 5 1 Classes Destroyed 9 | 2 4 . . 2 1 Builder 1 | . . . . . 1 Tunneler 3 | 3 . . . . . Hauler 2 | . 2 . . . . Recycler 1 | 1 . . . . . Watcher 2 | . 2 . . . . Swarmer 4 | . 3 . . . 1 Grunt 8 | . 4 . . 2 2 Demolisher 1 | . . . . 1 . Assembled 4 | . . . . 4 . Best Kill Streak 5 | 3 5 . . 3 2 Combat Bots Only 3 | . 3 . . 3 2 Max Kills in Single Turn 2 | 1 2 . . 1 1 Gunslinging . | . . . . . . Exploded . | . . . . . . Melee . | . . . . . . Uniques/NPCs Destroyed . | . . . . . . Combat | -11 -10 -10 -10 -9 -8 -------- Run | Yrd Mat Min Exi Min Mat Hostile Shots Fired 98 | . 11 . . 24 63 Missed 29 | . 4 . . 6 19 Hits 69 | . 7 . . 18 44 Melee 2 | . . . . 2 . Projectile 67 | . 7 . . 16 44 AOE 7 | . . . . 7 . Critical Strikes 3 | . . . . 1 2 Damage Taken 854 | . 103 . . 409 342 Core 124 | . 11 . . 27 86 Absorbed by Shields . | . . . . . . Ignored by Resistances 249 | . 28 . . 114 107 Core Remaining (%) 92 | 100 . . . 84 . Volleys Fired 50 | 6 14 . . 18 12 Largest 2 | 2 2 . . 2 2 Hottest 130 | 90 70 . . 70 130 Shots Fired 99 | 12 28 . . 35 24 Gun 46 | 12 14 . . 8 12 Cannon 53 | . 14 . . 27 12 Launcher . | . . . . . . Special . | . . . . . . Kinetic 41 | . 14 . . 27 . Thermal 30 | 6 . . . . 24 Explosive . | . . . . . . Electromagnetic 28 | 6 14 . . 8 . Robot Hit Streak 27 | 6 21 . . 27 11 Robot Miss Streak 2 | 1 . . . 2 2 Penetration Max . | . . . . . . Secondary Targets . | . . . . . . Shots Hit Robots 71 | 8 20 . . 26 17 Core Hits 34 | 5 12 . . 11 6 Critical Kills . | . . . . . . Critical Parts Destroyed . | . . . . . . Critical Strikes 2 | . 1 . . . 1 Burn 1 | . . . . . 1 Corrupt 1 | . 1 . . . . Melee Attacks . | . . . . . . Impact . | . . . . . . Slashing . | . . . . . . Piercing . | . . . . . . Sneak Attacks . | . . . . . . Combat Hostiles . | . . . . . . Follow-up Attacks . | . . . . . . Damage Inflicted 1232 | 103 321 . . 393 415 Guns 501 | 103 182 . . 51 165 Cannons 731 | . 139 . . 342 250 Explosions . | . . . . . . Melee . | . . . . . . Ramming . | . . . . . . Kinetic 481 | . 139 . . 342 . Thermal 465 | 50 . . . . 415 Explosive . | . . . . . . Electromagnetic 286 | 53 182 . . 51 . Impact . | . . . . . . Slashing . | . . . . . . Piercing . | . . . . . . Highest Corruption 4 | . . . . . 4 Average Corruption 4 | . . . . . 4 Corruption Purged . | . . . . . . Corruption Blocked . | . . . . . . Overload Shots . | . . . . . . Overflow Damage 21 | . . . . . 21 Projectiles 21 | . . . . . 21 Explosions . | . . . . . . Melee . | . . . . . . Knockbacks 7 | . 1 . . 6 . Impact . | . . . . . . Kinetic 7 | . 1 . . 6 . Secondary . | . . . . . . Self-Inflicted Damage . | . . . . . . Shots . | . . . . . . Rammed . | . . . . . . Targets Rammed . | . . . . . . Kicked . | . . . . . . Crushed . | . . . . . . Highest Temperature 446 | 90 66 . . 99 446 Average Temperature 80 | 32 27 . . 34 175 Received Heat Transfer 227 | . 30 . . 89 108 Effects 3 | . . . . . 3 Shutdowns 1 | . . . . . 1 Interference 1 | . . . . . 1 Damage (major) 1 | . . . . . 1 Siege Activations . | . . . . . . Martial Activations . | . . . . . . Shielding Activations . | . . . . . . Robots Disrupted . | . . . . . . Combat Hostiles . | . . . . . . Robots Corrupted . | . . . . . . Combat Hostiles . | . . . . . . Parts Fried . | . . . . . . Impact Corruptions . | . . . . . . Robots Melted . | . . . . . . Combat Hostiles . | . . . . . . Parts Melted 2 | . . . . . 2 Heat Transferred 925 | 148 . . . . 777 Parts Sabotaged . | . . . . . . Parts Stolen . | . . . . . . Parts Stripped . | . . . . . . Power Chain Reactions . | . . . . . . Alert | -11 -10 -10 -10 -9 -8 ------- Run | Yrd Mat Min Exi Min Mat Maximum Alert Level . | . . . . . . Low Security (%) 100 | 100 100 100 . 100 100 Level 1 . | . . . . . . Level 2 . | . . . . . . Level 3 . | . . . . . . Level 4 . | . . . . . . Level 5 . | . . . . . . High Security . | . . . . . . Max Security . | . . . . . . Peak Influence 105 | 10 105 14 . 56 52 Initial 14 | . . 14 . . . Average 16 | 1 42 1 . 7 13 Influence Increases 390 | 20 195 . . 76 99 Destroy 0b10 Robot/C 260 | . 140 . . 60 60 Destroy 0b10 Robot/NC 45 | 20 20 . . . 5 Destroy Leader 48 | . 28 . . 10 10 Allied During Kill 6 | . . . . 6 . Successful Hack 14 | . 7 . . . 7 Destroy Structure 2 | . . . . . 2 Lose Combat Pursuer 15 | . . . . . 15 Influence Decreases 348 | 20 150 45 . 76 57 Entered New Map 31 | . . 31 . . . Time Decay 267 | 20 140 14 . 56 37 Lost Part 50 | . 10 . . 20 20 Squads Dispatched 1 | . . . . . 1 Investigation 1 | . . . . . 1 Extermination . | . . . . . . Reinforcement . | . . . . . . Assault . | . . . . . . Garrison . | . . . . . . Intercept . | . . . . . . Searches Triggered . | . . . . . . Construction Impeded . | . . . . . . Haulers Reinforced . | . . . . . . Active Scanning Responses . | . . . . . . Cargo Convoy Interrupts . | . . . . . . Stealth | -11 -10 -10 -10 -9 -8 --------- Run | Yrd Mat Min Exi Min Mat Distress Signals 1 | . 1 . . . . Communications Jammed . | . . . . . . Distress Signals . | . . . . . . Times Spotted 34 | . 10 . . 14 10 Peak Tracking Total 8 | . 3 . . 7 8 Tactical Retreats 2 | . . . . 1 1 Traps | -11 -10 -10 -10 -9 -8 ------- Run | Yrd Mat Min Exi Min Mat Traps Triggered 2 | . 1 . . 1 . Indirectly . | . . . . . . Trap Hack Attempts . | . . . . . . Triggered . | . . . . . . Disarmed . | . . . . . . Reprogrammed . | . . . . . . Reused . | . . . . . . Traps Extracted . | . . . . . . Installed . | . . . . . . Triggered . | . . . . . . Machines | -11 -10 -10 -10 -9 -8 ---------- Run | Yrd Mat Min Exi Min Mat Machines Disabled . | . . . . . . Max in Single Turn . | . . . . . . Machines Repaired . | . . . . . . Machines Dismantled . | . . . . . . Machines Sabotaged . | . . . . . . Overloaded Fab Kills . | . . . . . . Hacking | -11 -10 -10 -10 -9 -8 --------- Run | Yrd Mat Min Exi Min Mat Machines Accessed 5 | . 3 . . 1 1 Terminals 4 | . 3 . . . 1 Fabricators . | . . . . . . Repair Stations . | . . . . . . Recycling Units . | . . . . . . Scanalyzers . | . . . . . . Garrison Access . | . . . . . . Total Hacks 11 | . 7 . . 1 3 Successful 4 | . 2 . . 1 1 Failed 7 | . 5 . . . 2 Catastrophic 1 | . . . . . 1 Database Lockouts . | . . . . . . Manual 7 | . 7 . . . . Terminals 10 | . 7 . . . 3 Fabricators . | . . . . . . Repair Stations . | . . . . . . Recycling Units . | . . . . . . Scanalyzers . | . . . . . . Garrison Access . | . . . . . . Terminal Hacks 4 | . 2 . . 1 1 Open Door 1 | . . . . 1 . Level Access Points 1 | . . . . . 1 Branch Access Points 1 | . 1 . . . . Zone Layout 1 | . 1 . . . . Fabricator Hacks . | . . . . . . Repair Station Hacks . | . . . . . . Recycling Unit Hacks . | . . . . . . Scanalyzer . | . . . . . . Garrison Access Hacks . | . . . . . . Unauthorized Hacks . | . . . . . . Terminals . | . . . . . . Fabricators . | . . . . . . Repair Stations . | . . . . . . Recycling Units . | . . . . . . Scanalyzers . | . . . . . . Garrison Access . | . . . . . . Data Cores Recovered . | . . . . . . Used . | . . . . . . Hacking Detections 3 | . 2 . . . 1 Full Trace Events 2 | . 1 . . . 1 Feedback Events . | . . . . . . Feedback Blocked . | . . . . . . Robot Schematics Acquired . | . . . . . . Robots Built . | . . . . . . Authchips . | . . . . . . Time . | . . . . . . Total Robot Build Rating . | . . . . . . Part Schematics Acquired . | . . . . . . Parts Built . | . . . . . . Authchips . | . . . . . . Time . | . . . . . . Total Part Build Rating . | . . . . . . Parts Repaired . | . . . . . . Time . | . . . . . . Parts Recycled . | . . . . . . Recycled Matter . | . . . . . . Retrieved Matter . | . . . . . . Retrieved Components . | . . . . . . Parts Scanalyzed . | . . . . . . Part Schematics Acquired . | . . . . . . Parts Damaged . | . . . . . . Bothacking | -11 -10 -10 -10 -9 -8 ------------ Run | Yrd Mat Min Exi Min Mat Used RIF Installer . | . . . . . . Robots Hacked . | . . . . . . Non-combat . | . . . . . . Combat . | . . . . . . Robot Hacks Applied . | . . . . . . Relay Couplers Released . | . . . . . . Fabnet Peak Effective % . | . . . . . . Robots Rewired 2 | . . . 2 . . Allies Hacked . | . . . . . . Hacks Repelled . | . . . . . . Allies | -11 -10 -10 -10 -9 -8 -------- Run | Yrd Mat Min Exi Min Mat Total Allies 7 | . . 5 2 . . Largest Group 5 | . . 5 5 5 . Highest-Rated Group 86 | . . 86 86 56 . Highest-Rated Ally 31 | . . 31 31 16 . Total Orders . | . . . . . . Ally Attacks 19 | . . . . 19 . Total Damage 145 | . . . . 145 . Kills 2 | . . . . 2 . Allies Corrupted . | . . . . . . Allies Melted . | . . . . . . Intel | -11 -10 -10 -10 -9 -8 ------- Run | Yrd Mat Min Exi Min Mat Active Infowar (turns) 1987 | 64 459 287 575 436 166 Optics 127 | . . . . . 127 Terrain 165 | . . . . . 165 Seismic 1821 | 64 459 287 575 436 . Robot Analysis Total . | . . . . . . Derelict Logs Recovered 1 | . . . . 1 . Drone Launches . | . . . . . . Drone Recoveries . | . . . . . . Exploration | -11 -10 -10 -10 -9 -8 ------------- Run | Yrd Mat Min Exi Min Mat Turns Passed 2114 | 132 459 287 575 489 172 Spaces Moved 1558 | 123 300 243 412 406 74 Core 2 | 2 . . . . . Treads . | . . . . . . Legs . | . . . . . . Wheels 1556 | 121 300 243 412 406 74 Hover . | . . . . . . Flight . | . . . . . . Fastest Speed 50 | 50 80 95 95 95 95 Average Speed 91 | 79 81 95 95 96 95 Slowest Speed 110 | 80 95 95 95 110 95 Overloaded Moves . | . . . . . . Propulsion Burnouts . | . . . . . . Robots Hopped . | . . . . . . Potential Cave-ins . | . . . . . . Cave-ins Triggered . | . . . . . . Exploration Rate (%) 45 | 6 55 47 86 68 8 Regions Visited 5 Branch Regions 3 Pre-discovered Areas . | . . . . . . Known Exits Taken 1 | . 1 . . . . Unknown Exits Taken 4 | 1 . 1 1 1 . Scrap Searched 2 | . . . . 2 . Spaces Dug . | . . . . . . Terrain Destroyed 1 | . . . . . 1 Melee . | . . . . . . Projectile 1 | . . . . . 1 AOE . | . . . . . . Terrain Rammed . | . . . . . . Walls Destroyed . | . . . . . . Machines Disabled . | . . . . . . Actions | -11 -10 -10 -10 -9 -8 --------- Run | Yrd Mat Min Exi Min Mat Total 2142 | 141 487 299 595 469 151 Wait 488 | . 166 57 174 37 54 Move 1553 | 122 299 242 411 405 74 Hop . | . . . . . . Pick Up 13 | 6 3 . . 4 . Fast Attach 10 | 7 1 . . . 2 Attach 9 | . 1 . . 3 5 Detach . | . . . . . . Swap 2 | . 1 . . . 1 Drop 7 | . 2 . . 2 3 Fire 50 | 6 14 . . 18 12 Melee . | . . . . . . Ram . | . . . . . . Kick . | . . . . . . Crush . | . . . . . . Escape Stasis . | . . . . . . Rewire 10 | . . . 10 . . Trap . | . . . . . . Miscellaneous . | . . . . . . Route ------- -11/Scrapyard -10/Materials (discovered 2 exits: [*Mat] / *Min) -10/Mines -10/Exiles -9/Mines -8/Materials (discovered 3 exits: Fac x3) History --------- Turn | Location | Event 37 | -11/Scrapyard | Discovered new exit (range 16) 133 | -11/Scrapyard | Entered Materials 313 | -10/Materials | Build established: Mutant 420 | -10/Materials | Identified exit to Mines 452 | -10/Materials | Discovered new exit (range 4) 592 | -10/Materials | Entered Mines 626 | -10/Mines | Assisted by bots powering up and referring to "LRC-V3" 854 | -10/Mines | Deemed a non-threat by the Exiles lab entrance 855 | -10/Mines | Discovered new exit (range 5) 879 | -10/Mines | Entered Exiles 879 | -10/Exiles | Found Exiles lab destroyed 879 | -10/Exiles | Accompanied by 5 allies 909 | -10/Exiles | Led the pair of lost Derelicts to a safe place 1217 | -10/Exiles | Build established: Commander-Mutant 1266 | -10/Exiles | Discovered new exit (range 10) 1454 | -10/Exiles | Entered Mines 1454 | -9/Mines | Accompanied by 5 allies 1612 | -9/Mines | Met a Derelict bent on vengeance 1785 | -9/Mines | Found a damaged Exp. Sensor Array with a note attached 1788 | -9/Mines | Found Prototype Device 1798 | -9/Mines | Assembled infested the area 1814 | -9/Mines | Learned Materials trap positions 1828 | -9/Mines | Met a Derelict who couldn't figure out how to use a Trap Extractor 1882 | -9/Mines | Lost 4 allies 1921 | -9/Mines | Lost 3 parts (1p1n1u) 1935 | -9/Mines | Discovered new exit (range 8) 1943 | -9/Mines | Entered Materials 1943 | -8/Materials | Evolved 4 slots: Propulsion x2, Utility x2 1944 | -8/Materials | Loaded intel: 26 trap records 1960 | -8/Materials | Identified exit to Factory 2115 | -8/Materials | Self-destructed Last Messages --------------- Overheating: Hvy. Particle Gun damaged (-29). Acquired 60 matter. Power failure, Ion Engine shutdown. Overheating: System interference. Visual Processing Unit temporarily disabled. K-01 Serf collects debris. U-05 Engineer destroyed. Integrated Corrupted Hvy. Missile Launcher (+4). Corrupted Hvy. Missile Launcher temporarily disabled. K-01 Serf collects debris. Dropped Hvy. Missile Launcher. K-01 Serf collects debris. S-10 Pest suffers critical hit (Burn). Destroyed Flight Unit. S-10 Pest heat damages Lgt. Assault Rifle. Imp. Terrain Scanner destroyed. S-10 Pest destroyed. K-01 Serf collects debris. Wheel destroyed. Map ----- +----------------------------------------------------+ | | | | | | | | | | | | | ??#?#????#?#?##???########?#?#???????????????????? | | ??#??#?##?#####??? [ #?????????????????????? | | ????#?????######## ##????????????????????? | | #????#??#?# [# #?????????????????????? | | ????#??#??# # ! ?##?#?????????????????? | | ???????#### # """ ##?#?#????????????????? | | ??#??#?#### # """ "" ?##?#? ??????????????? | | ?????#??### "T" # """ S?" ##?#??????????????????? | | ?#?#?##?### # ""? ?##????? ?????????????? | | ?##??#?#?######+###"##+#############+##??????????? | | ???#?####### ?????????? | | #?#?#?###### ?????????? | | ?#########?# =[ ?????????? | | ?#####?########"########+#############+??????????? | | ##?##?##### %!# #?# ???? ????????? | | ??#?#?#??##""" [# #???""? ??????????? | | ???#?#?####""" # #????"" "?????????? | | ?##?#?##?##"""] ]# ksss#?# ??????????????? | | ?########## # *ss ###???????????????? | | ???##???### !# @ s% ##??? ??"?????????? | | ?#??###?#####################+###???? ??????????? | | ????#??##?##?##?############# #???????? ???#?????? | | ?##?#?#?#######??#######????# ###?????? ?????????? | | ?#??#??######????########?### #??#?#????#????????? | | ??##?#####??#?##?#?#####?#?## #???#??#???????????? | | ???#???########?#?#####?###?# ##?##??????????????? | | ????###????#??##?####??###?## #????#??#??????????? | | ????##?##?#??#?###?? ?##?### #?#????????????????? | | ???##???##?###?#? ? ? ????### ????#?#?#??? ??????? | | ?????????#?#?#?##?? ##???# #??????????????????? | | ???????????? ??? ? ? #?###? ?????#?????????????? | | ??????##?## ?? ? ???? ? ?#?#???????????????? | | ??????????? ?##?#?###???#?#? ???????????????????? | | ??????????????#?##????? ????? #??????????????????? | | ???????????? ???? ??? ??????? ???????????????????? | | ???????????????? ????????????????????????????????? | | ?????????????????????????????????????????????????? | | ?????????????????????????????????????????????????? | | ?????????????????????????????????????????????????? | | ?????????????????????????????????????????????????? | | ?????????????????????????????????????????????????? | | ?????????????????????????????????????????????????? | | ?????????????????????????????????????????????????? | | ?????????????????????????????????????????????????? | +----------------------------------------------------+ Best States ------------- Heat Dissipation 31 Energy Generation 10 Energy Capacity 250 Matter Stores 300 Matter Capacity 300 Sight Range 18 Terrain Scan Range 16 Terrain Scan Density 85 Resistance: KI 20 Resistance: TH 20 Resistance: EX 20 Resistance: EM 20 Resistance: I 20 Resistance: S 20 Resistance: P 20 Evasion (%) 44 Offensive Hacking 10 Item Schematics ----------------- None Robot Schematics ------------------ None Fabricated ------------ Nothing Repaired ---------- Nothing Alien Tech Used ----------------- None Achievements -------------- None Challenges ------------ None Game ------ Seed HeatRecyclingTendrils Manual? 0 Play Time 00:12:04 Cumulative 115.4 hours Start 2025.07.24 @ 23:21:19 End 2025.07.25 @ 16:48:10 Sessions 3 Manual Loads 0 Difficulty Adventurer Special Mode None Game No. 96 Rogue 0 Adventurer 96 Explorer 0 Win Type - Total 2 Types 2/0/0/0/0/0/0/0/0/0 Lore% 54 Gallery% 53 Achievement% 52 Wizard Run 0 Options --------- Layout 1 ASCII 0 Keyboard 0 Movement Arrows Keybinds 0 Fullscreen 1 Font 24/Smallcaps Map View 50x35 Zoom Use 7% Tactical HUD 0 Map Filters NONE Filters NONE Steam 1 RUN: 7bf96e96-1584-4007-979e-9da9276a7325